bitfinex-derivatives/quotes_BTCF0:USTF0_20250720
["timestamp","ask_amount","ask_price","bid_price","bid_amount"]
[1753038708391,0.5901901,118650.0,118640.0,1.48750593]
[1753038711704,0.6826101,118650.0,118640.0,1.48750593]
[1753038713511,0.6826101,118650.0,118640.0,1.23661229]
[1753038713703,0.6826101,118650.0,118640.0,1.48750593]
[1753038716119,0.6826101,118650.0,118640.0,1.23661229]
[1753038716616,0.6826101,118650.0,118640.0,1.48750593]
[1753038717118,0.6826101,118650.0,118640.0,1.23661229]
[1753038717319,0.6826101,118650.0,118640.0,1.48750593]
[1753038717821,0.6826101,118650.0,118640.0,1.23661229]
[1753038718015,0.6826101,118650.0,118640.0,1.48750593]
[1753038719121,0.77827713,118650.0,118640.0,1.61278635]
[1753038719615,0.77827713,118650.0,118640.0,1.42469932]
[1753038720115,0.77827713,118650.0,118640.0,1.61278635]
[1753038720716,0.77827713,118650.0,118640.0,1.42469932]
[1753038721121,0.77827713,118650.0,118640.0,1.61278635]
[1753038721922,0.87189713,118650.0,118640.0,1.42469932]
[1753038722115,1.27071713,118650.0,118640.0,0.46379799]
[1753038722320,1.27071713,118650.0,118640.0,1.22042289]
[1753038722520,1.27071713,118650.0,118640.0,1.05191799]
[1753038722521,1.33091999,118650.0,118640.0,1.05191799]
[1753038723220,1.33346708,118650.0,118640.0,1.05191799]
[1753038725420,1.40944242,118650.0,118640.0,1.05191799]
[1753038725728,1.33346708,118650.0,118640.0,1.05191799]
[1753038725919,1.0826301,118650.0,118640.0,1.22042289]
[1753038726128,1.33346708,118650.0,118640.0,1.22042289]
[1753038726324,1.33346708,118650.0,118640.0,1.05191799]
[1753038726829,1.40944242,118650.0,118640.0,1.05191799]
[1753038729132,1.39414916,118650.0,118640.0,1.05191799]
[1753038732336,1.14331218,118650.0,118640.0,1.05191799]
[1753038732536,1.14331218,118650.0,118640.0,1.22042289]
[1753038732730,1.39414916,118650.0,118640.0,1.24317289]
[1753038733231,0.78251218,118650.0,118640.0,1.24317289]
[1753038733429,0.78251218,118650.0,118640.0,1.49400987]
[1753038733633,0.74449218,118650.0,118640.0,1.49400987]
[1753038734334,1.0446101,118650.0,118640.0,1.49400987]
[1753038734636,0.6838101,118650.0,118640.0,1.49400987]
[1753038734938,1.0446101,118650.0,118640.0,1.49400987]
[1753038737237,0.6838101,118650.0,118640.0,1.49400987]
[1753038737840,1.0446101,118650.0,118640.0,1.49400987]
[1753038739838,1.0446101,118650.0,118640.0,1.32550497]
[1753038740134,1.0446101,118650.0,118640.0,1.49400987]
[1753038740734,1.10529218,118650.0,118640.0,1.49400987]
[1753038741238,1.35612916,118650.0,118640.0,1.24317289]
[1753038741639,1.29544708,118650.0,118640.0,1.24317289]
[1753038742233,1.0446101,118650.0,118640.0,1.49400987]
[1753038742835,1.0826301,118650.0,118640.0,1.07466799]
[1753038743040,1.0826301,118650.0,118640.0,1.24317289]
[1753038743230,1.0826301,118650.0,118640.0,1.07466799]
[1753038745139,1.0826301,118650.0,118640.0,1.26278922]
[1753038745140,1.27075133,118650.0,118640.0,1.26278922]
[1753038745442,1.27075133,118650.0,118640.0,1.07466799]
[1753038745644,1.27075133,118650.0,118640.0,1.26278922]
[1753038746847,1.27075133,118650.0,118640.0,1.07466799]
[1753038747048,1.27075133,118650.0,118640.0,1.26278922]
[1753038747743,1.27075133,118650.0,118640.0,1.43129412]
[1753038749743,1.33143341,118650.0,118640.0,1.43129412]
[1753038749943,1.33143341,118650.0,118640.0,1.26278922]
[1753038750146,1.33143341,118650.0,118640.0,1.43129402]
[1753038751341,1.27075133,118650.0,118640.0,1.43129402]
[1753038751936,1.27075133,118650.0,118640.0,1.26278922]
[1753038752343,1.27075133,118650.0,118640.0,1.43129412]
[1753038752649,1.0826301,118650.0,118640.0,1.43129412]
[1753038752949,1.27075133,118650.0,118640.0,1.26278922]
[1753038753347,1.27075133,118650.0,118640.0,1.43129402]
[1753038753649,1.33143341,118650.0,118640.0,1.43129402]
[1753038753946,1.27075133,118650.0,118640.0,1.43129402]
[1753038755141,0.90995133,118650.0,118640.0,1.43129402]
[1753038755336,1.27075133,118650.0,118640.0,1.43129402]
[1753038755540,1.27075133,118650.0,118640.0,1.26278922]
[1753038756448,1.0826301,118650.0,118640.0,1.26278922]
[1753038756648,1.27075133,118650.0,118640.0,1.43129402]
[1753038757749,1.27075133,118650.0,118640.0,1.26278922]
[1753038761449,1.33143341,118650.0,118640.0,1.26278922]
[1753038763153,1.33143341,118650.0,118640.0,1.43129402]
[1753038763350,1.29341341,118650.0,118640.0,1.43129402]
[1753038763747,1.29341341,118650.0,118640.0,1.26278922]
[1753038763949,0.93261341,118650.0,118640.0,1.43129402]
[1753038764150,1.29341341,118650.0,118640.0,1.43129402]
[1753038764552,0.74449218,118650.0,118640.0,1.43129402]
[1753038764753,0.93261341,118650.0,118640.0,1.43129402]
[1753038765152,1.19979341,118650.0,118640.0,1.24317279]
[1753038765352,0.83899341,118650.0,118640.0,1.43129402]
[1753038765556,1.19979341,118650.0,118640.0,1.26278922]
[1753038765851,1.28926341,118650.0,118640.0,1.43129402]
[1753038767057,1.28926341,118650.0,118640.0,1.26278922]
[1753038767258,1.28926341,118650.0,118640.0,1.43129402]
[1753038767457,1.28926341,118650.0,118640.0,1.26278922]
[1753038768460,1.32728341,118650.0,118640.0,1.07466799]
[1753038768656,1.32728341,118650.0,118640.0,1.26278922]
[1753038772062,1.28926341,118650.0,118640.0,1.26278922]
[1753038772857,0.92846341,118650.0,118640.0,1.26278922]
[1753038773062,1.22858133,118650.0,118640.0,1.26278922]
[1753038773563,1.0404601,118650.0,118640.0,1.26278922]
[1753038773762,1.28926341,118650.0,118640.0,1.26278922]
[1753038774265,1.22858133,118650.0,118640.0,1.43129402]
[1753038774454,0.86778133,118650.0,118640.0,1.26278922]
[1753038774660,1.22858133,118650.0,118640.0,1.43129402]
[1753038774959,1.22858133,118650.0,118640.0,1.26278922]
[1753038775360,1.0404601,118650.0,118640.0,1.43129402]
[1753038775664,1.22858133,118650.0,118640.0,1.43129402]
[1753038775865,1.28930533,118650.0,118640.0,1.07466799]
[1753038776067,1.28930533,118650.0,118640.0,1.26278922]
[1753038776761,1.32732533,118650.0,118640.0,0.67466922]
[1753038776968,1.32732533,118650.0,118640.0,1.26054922]
[1753038778566,1.0784801,118650.0,118640.0,0.48654799]
[1753038778761,1.0784801,118650.0,118640.0,1.26054922]
[1753038778968,1.0784801,118650.0,118640.0,1.07242799]
[1753038778969,1.26660133,118650.0,118640.0,1.07242799]
[1753038779162,1.26660133,118650.0,118640.0,1.26054922]
[1753038779967,1.0784801,118650.0,118640.0,1.26054922]
[1753038780163,1.26660133,118650.0,118640.0,1.26054922]
[1753038780562,1.0784801,118650.0,118640.0,1.26054922]
[1753038780765,1.32732584,118650.0,118640.0,1.26054922]
[1753038781270,1.13920461,118650.0,118640.0,1.26054922]
[1753038781474,1.32732584,118650.0,118640.0,1.26054922]
[1753038781971,1.28930584,118650.0,118640.0,1.42905402]
[1753038782465,1.10118461,118650.0,118640.0,1.42905402]
[1753038782671,0.83903584,118650.0,118640.0,1.42905402]
[1753038784068,0.92649584,118650.0,118640.0,1.26054922]
[1753038784268,1.22657133,118650.0,118640.0,1.26054922]
[1753038784469,1.26459133,118650.0,118640.0,1.26054922]
[1753038786170,1.13719461,118650.0,118640.0,1.42905402]
[1753038786371,1.32531584,118650.0,118640.0,1.26054922]
[1753038787875,1.32531584,118650.0,118640.0,1.07242799]
[1753038788077,1.32531584,118650.0,118640.0,1.26054922]
[1753038789079,1.32531584,118650.0,118640.0,1.07242799]
[1753038789276,1.32531584,118650.0,118640.0,1.26054922]
[1753038789480,0.96451584,118650.0,118640.0,1.42905402]
[1753038789682,0.77639461,118650.0,118640.0,1.42905402]
[1753038789979,1.32531584,118650.0,118640.0,1.26054922]
[1753038790379,0.96451584,118650.0,118640.0,1.26054922]
[1753038790580,0.96451584,118650.0,118640.0,1.42905402]
[1753038790775,1.28729584,118650.0,118640.0,1.26054922]
[1753038792872,1.09917461,118650.0,118640.0,1.26054922]
[1753038793079,1.28729584,118650.0,118640.0,1.26054922]
[1753038794473,1.32531584,118650.0,118640.0,1.26054922]
[1753038800587,1.13719461,118650.0,118640.0,1.07242799]
[1753038800787,1.26459133,118650.0,118640.0,1.26054922]
[1753038801483,1.32531584,118650.0,118640.0,1.26054922]
[1753038801681,1.26459133,118650.0,118640.0,1.26054922]
[1753038802790,1.32531584,118650.0,118640.0,1.07242799]
[1753038802978,1.32531584,118650.0,118640.0,1.26054922]
[1753038803890,1.26459133,118650.0,118640.0,1.26054922]
[1753038804683,1.0764701,118650.0,118640.0,1.26054922]
[1753038804883,1.26459133,118650.0,118640.0,1.26054922]
[1753038805691,1.26459133,118650.0,118640.0,1.04967799]
[1753038806386,1.26459133,118650.0,118640.0,0.38760799]
[1753038806587,1.45271256,118650.0,118640.0,0.25779799]
[1753038806891,1.5286879,118650.0,118640.0,0.25779799]
[1753038807092,1.5286879,118650.0,118640.0,0.34409799]
[1753038807681,1.61297295,118650.0,118640.0,0.21234799]
[1753038808091,1.61297295,118650.0,118640.0,0.21034799]
[1753038808291,1.53699761,118650.0,118640.0,0.21034799]
[1753038808493,1.61297295,118650.0,118640.0,0.25767799]
[1753038809092,1.61297295,118650.0,118640.0,0.34397799]
[1753038809289,1.23673049,118650.0,118640.0,0.34397799]
[1753038809541,1.61297295,118650.0,118640.0,0.34397799]
[1753038809804,1.42485172,118650.0,118640.0,0.34397799]
[1753038811399,1.23673049,118650.0,118640.0,0.34397799]
[1753038811899,1.42485172,118650.0,118640.0,0.34397799]
[1753038812502,1.34887638,118650.0,118640.0,0.34397799]
[1753038812801,1.53699761,118650.0,118640.0,0.34397799]
[1753038813297,1.59764439,118650.0,118640.0,0.34397799]
[1753038813803,0.4159048,118640.0,118630.0,0.13463]
[1753038814000,2.07939626,118640.0,118630.0,0.13463]
[1753038814202,2.01874726,118640.0,118630.0,0.13463]
[1753038814502,2.07939626,118640.0,118630.0,0.13463]
[1753038814702,2.07939626,118640.0,118630.0,0.16679]
[1753038814903,1.7031538,118640.0,118630.0,0.16679]
[1753038815106,2.07939626,118640.0,118630.0,0.16679]
[1753038815904,2.01874726,118640.0,118630.0,0.16679]
[1753038816100,2.07939626,118640.0,118630.0,0.16679]
[1753038816903,2.44019626,118640.0,118630.0,0.16679]
[1753038817808,2.0639538,118640.0,118630.0,0.16679]
[1753038818006,2.44019626,118640.0,118630.0,0.16679]
[1753038819808,2.44019626,118640.0,118630.0,0.2238]
[1753038822304,2.44019626,118640.0,118630.0,0.13463]
[1753038823506,0.4256132,118620.0,118610.0,1.15345853]
[1753038823710,1.26453443,118620.0,118610.0,1.15345853]
[1753038823917,1.26453443,118620.0,118610.0,0.98491123]
[1753038824116,1.17867443,118620.0,118610.0,0.98491123]
[1753038824309,1.23932343,118620.0,118610.0,0.98491123]
[1753038824611,1.32518343,118620.0,118610.0,0.79679]
[1753038824928,1.32518343,118620.0,118610.0,0.98491123]
[1753038825210,1.3334731,118620.0,118610.0,0.98491123]
[1753038825407,1.2476131,118620.0,118610.0,1.15345863]
[1753038825610,1.2476131,118620.0,118610.0,1.20178863]
[1753038825809,1.1869641,118620.0,118610.0,1.20178863]
[1753038826008,1.1869641,118620.0,118610.0,1.20378863]
[1753038827415,1.1869641,118620.0,118610.0,1.0156674]
[1753038827712,0.8261641,118620.0,118610.0,1.20378863]
[1753038827911,1.1869641,118620.0,118610.0,1.20378863]
[1753038829315,0.99884287,118620.0,118610.0,1.20378863]
[1753038829614,0.63804287,118620.0,118610.0,1.20378863]
[1753038829813,0.8261641,118620.0,118610.0,1.20378863]
[1753038831116,0.63804287,118620.0,118610.0,1.20378863]
[1753038831317,0.8261641,118620.0,118610.0,1.20378863]
[1753038831816,0.63804287,118620.0,118610.0,1.20378863]
[1753038834819,0.63804287,118620.0,118610.0,1.56458863]
[1753038835519,0.63804287,118620.0,118610.0,1.20378863]
[1753038838322,0.59034287,118620.0,118610.0,1.56458863]
[1753038840217,0.30173,118620.0,118610.0,1.39190986]
[1753038840526,0.02432,118640.0,118630.0,0.168519]
[1753038840821,0.27,118640.0,118630.0,1.67492146]
[1753038842124,0.27,118640.0,118630.0,1.67892146]
[1753038842923,0.4385048,118640.0,118630.0,1.67892146]
[1753038843925,0.4385048,118640.0,118630.0,1.68092146]
[1753038844221,0.4846948,118640.0,118630.0,1.68092146]
[1753038846821,0.31619,118640.0,118630.0,1.68092146]
[1753038847924,0.34051,118640.0,118630.0,1.68092146]
[1753038848524,0.5090148,118640.0,118630.0,1.68092146]
[1753038848828,0.34051,118640.0,118630.0,1.68092146]
[1753038849627,0.5090148,118640.0,118630.0,1.304679]
[1753038849817,0.5090148,118640.0,118630.0,1.68092146]
[1753038850420,0.34051,118640.0,118630.0,1.68092146]
[1753038851326,0.5090148,118640.0,118630.0,1.67892146]
[1753038851528,0.34051,118640.0,118630.0,1.67892146]
[1753038851729,0.5090148,118640.0,118630.0,1.67892146]
[1753038851931,0.5090148,118640.0,118630.0,1.302679]
[1753038852133,0.5090148,118640.0,118630.0,1.67892146]
[1753038852831,0.5090148,118640.0,118630.0,1.31812146]
[1753038853031,0.5090148,118640.0,118630.0,1.67892146]
[1753038855934,0.5520148,118640.0,118630.0,1.302679]
[1753038856232,0.6427848,118640.0,118630.0,1.49080023]
[1753038856831,0.7033548,118640.0,118630.0,1.49080023]
[1753038857032,0.7033548,118640.0,118630.0,1.13000023]
[1753038857235,0.7033548,118640.0,118630.0,1.49080023]
[1753038857434,0.7033548,118640.0,118630.0,1.13000023]
[1753038858230,0.7033548,118640.0,118630.0,0.941879]
[1753038858430,0.7033548,118640.0,118630.0,1.13000023]
[1753038859429,0.7033548,118640.0,118630.0,1.31812146]
[1753038859733,0.53485,118640.0,118630.0,1.67892146]
[1753038860333,0.53485,118640.0,118630.0,1.31812146]
[1753038860534,0.7033548,118640.0,118630.0,1.67892146]
[1753038861636,0.7033548,118640.0,118630.0,1.31812146]
[1753038862037,0.7033548,118640.0,118630.0,1.67892146]
[1753038866940,0.7033548,118640.0,118630.0,1.31812146]
[1753038867637,0.7033548,118640.0,118630.0,1.67892146]
[1753038868040,0.7033548,118640.0,118630.0,1.31812146]
[1753038868242,0.7033548,118640.0,118630.0,1.67892146]
[1753038868434,0.6125848,118640.0,118630.0,1.31812146]
[1753038868730,0.6125848,118640.0,118630.0,1.67892146]
[1753038868933,0.6125848,118640.0,118630.0,1.302679]
[1753038869130,0.6125848,118640.0,118630.0,0.941879]
[1753038869336,0.6125848,118640.0,118630.0,1.31812146]
[1753038871641,0.6125848,118640.0,118630.0,1.67892146]
[1753038871838,0.6125848,118640.0,118630.0,1.31812146]
[1753038872043,0.6125848,118640.0,118630.0,1.67892146]
[1753038872837,0.6125848,118640.0,118630.0,1.09332146]
[1753038873038,0.6997948,118640.0,118630.0,1.67996146]
[1753038873239,0.6997948,118640.0,118630.0,1.70261369]
[1753038874236,0.6997948,118640.0,118630.0,1.67996146]
[1753038874837,0.6997948,118640.0,118630.0,1.09332146]
[1753038875042,0.6997948,118640.0,118630.0,0.55338728]
[1753038875043,0.88791603,118640.0,118630.0,0.55338728]
[1753038875232,0.88791603,118640.0,118630.0,1.13954728]
[1753038875440,0.88791603,118640.0,118630.0,1.11691023]
[1753038876142,0.88791603,118640.0,118630.0,0.928789]
[1753038876343,0.88791603,118640.0,118630.0,1.11387023]
[1753038876642,0.88791603,118640.0,118630.0,1.11587023]
[1753038876839,0.88791603,118640.0,118630.0,0.52975023]
[1753038877038,0.6997948,118640.0,118630.0,1.11579023]
[1753038877239,0.88791603,118640.0,118630.0,1.11479023]
[1753038878439,0.88791603,118640.0,118630.0,1.11483023]
[1753038878639,0.6997948,118640.0,118630.0,1.11483023]
[1753038878942,0.88791603,118640.0,118630.0,1.11483023]
[1753038879839,0.88791603,118640.0,118630.0,0.52875023]
[1753038880039,0.88791603,118640.0,118630.0,1.11479023]
[1753038880640,0.88791603,118640.0,118630.0,0.52875023]
[1753038880839,0.88791603,118640.0,118630.0,1.11479023]
[1753038883848,0.6997948,118640.0,118630.0,1.11479023]
[1753038884147,0.88791603,118640.0,118630.0,1.11479023]
[1753038884336,0.6997948,118640.0,118630.0,1.11479023]
[1753038884538,0.88791603,118640.0,118630.0,1.11479023]
[1753038885048,0.6997948,118640.0,118630.0,1.11479023]
[1753038885248,0.88791603,118640.0,118630.0,1.11479023]
[1753038885447,0.6997948,118640.0,118630.0,1.11479023]
[1753038886044,0.6997948,118640.0,118630.0,1.12844023]
[1753038887548,0.6997948,118640.0,118630.0,1.13044023]
[1753038888350,0.6997948,118640.0,118630.0,1.11679023]
[1753038889451,0.6997948,118640.0,118630.0,1.49124023]
[1753038889652,0.6125848,118640.0,118630.0,1.67836146]
[1753038889852,0.6125848,118640.0,118630.0,1.49024023]
[1753038890256,0.6997948,118640.0,118630.0,1.301119]
[1753038890552,0.6997948,118640.0,118630.0,1.48924023]
[1753038891254,0.5520148,118640.0,118630.0,1.48924023]
[1753038891852,0.5520148,118640.0,118630.0,1.67736146]
[1753038892743,0.6392248,118640.0,118630.0,1.31656146]
[1753038892944,0.6392248,118640.0,118630.0,1.12844023]
[1753038893350,0.7002748,118640.0,118630.0,1.12844023]
[1753038893752,0.7002748,118640.0,118630.0,0.940319]
[1753038893953,0.7002748,118640.0,118630.0,1.12844023]
[1753038894155,0.7002748,118640.0,118630.0,1.12944023]
[1753038895058,0.7002748,118640.0,118630.0,1.11679023]
[1753038896264,0.7002748,118640.0,118630.0,0.928669]
[1753038896452,0.7002748,118640.0,118630.0,1.11679023]
[1753038896960,0.7002748,118640.0,118630.0,1.11579023]
[1753038897259,0.7002748,118640.0,118630.0,1.11479023]
[1753038897559,0.7002748,118640.0,118630.0,0.926669]
[1753038897760,0.7002748,118640.0,118630.0,1.11479023]
[1753038898463,0.88839603,118640.0,118630.0,1.11479023]
[1753038898765,0.88839603,118640.0,118630.0,1.11419023]
[1753038899563,0.7002748,118640.0,118630.0,1.11419023]
[1753038899766,0.88839603,118640.0,118630.0,1.11419023]
[1753038900566,0.88839603,118640.0,118630.0,0.94567123]
[1753038900963,1.07651726,118640.0,118630.0,0.73571]
[1753038901162,0.88839603,118640.0,118630.0,0.73571]
[1753038901361,0.88839603,118640.0,118630.0,0.92383123]
[1753038901553,1.24919603,118640.0,118630.0,0.92383123]
[1753038902058,1.0610748,118640.0,118630.0,1.09235023]
[1753038902267,1.24919603,118640.0,118630.0,1.09235023]
[1753038902566,0.88839603,118640.0,118630.0,1.09235023]
[1753038903064,0.88839603,118640.0,118630.0,0.926069]
[1753038903459,0.88839603,118640.0,118630.0,1.11419023]
[1753038904468,1.24919603,118640.0,118630.0,1.11419023]
[1753038905565,0.88839603,118640.0,118630.0,0.94567123]
[1753038905861,0.88839603,118640.0,118630.0,0.92383123]
[1753038906369,1.0610748,118640.0,118630.0,1.09235013]
[1753038906667,1.24919603,118640.0,118630.0,0.92383123]
[1753038910062,1.24919603,118640.0,118630.0,1.09235013]
[1753038910870,1.24919603,118640.0,118630.0,0.92383123]
[1753038911975,1.24919603,118640.0,118630.0,0.73571]
[1753038912172,1.24919603,118640.0,118630.0,0.92383123]
[1753038913069,1.0610748,118640.0,118630.0,1.11419013]
[1753038913274,1.24919603,118640.0,118630.0,1.11419013]
[1753038913664,1.0610748,118640.0,118630.0,1.11419013]
[1753038913865,1.24919603,118640.0,118630.0,1.11419013]
[1753038914365,1.24919603,118640.0,118630.0,0.94567123]
[1753038914366,1.30984503,118640.0,118630.0,0.94567123]
[1753038914560,0.7609238,118640.0,118630.0,0.94567123]
[1753038914763,0.94904503,118640.0,118630.0,1.11419013]
[1753038915981,0.88839603,118640.0,118630.0,1.11419013]
[1753038916278,0.7609238,118640.0,118630.0,1.11419013]
[1753038916661,0.94904503,118640.0,118630.0,1.11419013]
[1753038917576,0.7609238,118640.0,118630.0,1.11419013]
[1753038917876,0.94904503,118640.0,118630.0,1.11419013]
[1753038918179,0.7609238,118640.0,118630.0,1.11419013]
[1753038918370,0.94904503,118640.0,118630.0,1.11419013]
[1753038919279,0.7609238,118640.0,118630.0,1.11419013]
[1753038919479,0.88839603,118640.0,118630.0,1.11419013]
[1753038919871,0.7002748,118640.0,118630.0,1.11419013]
[1753038924078,0.7002748,118640.0,118630.0,0.94567123]
[1753038924280,0.88839603,118640.0,118630.0,1.11419013]
[1753038924983,0.7002748,118640.0,118630.0,1.11419013]
[1753038925175,0.88839603,118640.0,118630.0,1.11419013]
[1753038925481,0.7002748,118640.0,118630.0,1.11419013]
[1753038925780,0.7002748,118640.0,118630.0,1.47499013]
[1753038928092,0.7002748,118640.0,118630.0,1.11419013]
[1753038928797,0.88839603,118640.0,118630.0,1.11419013]
[1753038929188,0.7002748,118640.0,118630.0,1.11419013]
[1753038929393,0.88839603,118640.0,118630.0,1.11419013]
[1753038931196,0.7002748,118640.0,118630.0,1.12784013]
[1753038932494,0.7002748,118640.0,118630.0,1.11419013]
[1753038934096,0.88839603,118640.0,118630.0,1.11419013]
[1753038934290,0.7002748,118640.0,118630.0,1.11419013]
[1753038935096,0.7002748,118640.0,118630.0,1.47499013]
[1753038935293,0.7002748,118640.0,118630.0,1.11419013]
[1753038935493,0.6392248,118640.0,118630.0,1.67676136]
[1753038935694,0.5520148,118640.0,118630.0,1.67676136]
[1753038936196,0.5520148,118640.0,118630.0,1.3005189]
[1753038936395,0.5520148,118640.0,118630.0,1.67676136]
[1753038936796,0.5520148,118640.0,118630.0,1.48864013]
[1753038936997,0.5520148,118640.0,118630.0,1.67676136]
[1753038937198,0.5090148,118640.0,118630.0,1.3005189]
[1753038937399,0.5090148,118640.0,118630.0,1.48864013]
[1753038938100,0.5090148,118640.0,118630.0,1.3005189]
[1753038938499,0.5090148,118640.0,118630.0,1.48864013]
[1753038938697,0.5401348,118640.0,118630.0,1.48864013]
[1753038939098,0.5401348,118640.0,118630.0,1.12784013]
[1753038939300,0.5401348,118640.0,118630.0,1.48864013]
[1753038944603,0.34051,118640.0,118630.0,1.69939841]
[1753038944806,0.31619,118640.0,118630.0,1.3005189]
[1753038945004,0.31619,118640.0,118630.0,1.69939841]
[1753038946205,0.31619,118640.0,118630.0,1.70039841]
[1753038946505,0.4846947,118640.0,118630.0,1.70039841]
[1753038946804,0.4846947,118640.0,118630.0,1.70139841]
[1753038947502,0.27,118640.0,118630.0,1.88951964]
[1753038947701,0.3244782,118660.0,118650.0,0.3439906]
[1753038947905,0.5544782,118660.0,118650.0,1.2937506]
[1753038948302,0.5123566,118660.0,118650.0,1.48187183]
[1753038948905,0.5434766,118660.0,118650.0,1.48187183]
[1753038949306,0.5098373,118660.0,118650.0,1.48187183]
[1753038949507,0.23,118660.0,118650.0,1.66999306]
[1753038950003,0.23,118660.0,118650.0,1.67199306]
[1753038950208,0.23,118660.0,118650.0,2.03279306]
[1753038958112,0.23,118660.0,118650.0,1.6565506]
[1753038958307,0.23,118660.0,118650.0,2.03279306]
[1753038960013,0.23,118660.0,118650.0,2.32439306]
[1753038961119,0.23,118660.0,118650.0,1.9481506]
[1753038961308,0.23,118660.0,118650.0,2.32439306]
[1753038963716,0.134093,118680.0,118670.0,0.1684622]
[1753038963912,0.304093,118680.0,118670.0,1.49566466]
[1753038964116,0.326633,118680.0,118670.0,1.49566466]
[1753038967618,0.429203,118680.0,118670.0,0.90550466]
[1753038967914,1.33469346,118680.0,118670.0,0.94718343]
[1753038968112,1.14657223,118680.0,118670.0,0.94718343]
[1753038968316,1.33469346,118680.0,118670.0,0.7590622]
[1753038968515,0.2710322,118670.0,118660.0,0.39870183]
[1753038968715,0.90372343,118670.0,118660.0,0.8019006]
[1753038969116,0.7156022,118670.0,118660.0,0.8019006]
[1753038969316,0.90372343,118670.0,118660.0,0.8019006]
[1753038969513,0.90372343,118670.0,118660.0,0.99002183]
[1753038970217,0.90372343,118670.0,118660.0,0.8019006]
[1753038970417,0.90372343,118670.0,118660.0,0.99002183]
[1753038971212,0.7156022,118670.0,118660.0,0.8019006]
[1753038971412,1.0764022,118670.0,118660.0,0.7597846]
[1753038972812,1.0764022,118670.0,118660.0,0.59132]
[1753038973408,1.32713131,118670.0,118660.0,0.59132]
[1753038974011,0.1806506,118650.0,118640.0,1.3344122]
[1753038974214,0.7256306,118650.0,118640.0,1.9259322]
[1753038974720,0.7256306,118650.0,118640.0,0.1684922]
[1753038974913,0.4256448,118640.0,118630.0,0.70525356]
[1753038975117,0.6856448,118640.0,118630.0,0.52024651]
[1753038975318,0.6856448,118640.0,118630.0,0.8610374]
[1753038975519,0.6856448,118640.0,118630.0,1.11176651]
[1753038975719,0.6856448,118640.0,118630.0,0.8610374]
[1753038976019,0.6856448,118640.0,118630.0,1.11176651]
[1753038978017,1.0464448,118640.0,118630.0,0.861049]
[1753038978217,1.0464448,118640.0,118630.0,1.11177811]
[1753038978814,1.0464448,118640.0,118630.0,1.11377811]
[1753038980119,0.69413058,118640.0,118630.0,1.11377811]
[1753038982822,1.05493058,118640.0,118630.0,0.863049]
[1753038983114,1.05493058,118640.0,118630.0,1.11377811]
[1753038983616,1.05493058,118640.0,118630.0,0.002]
[1753038983823,0.4256732,118620.0,118610.0,0.52028651]
[1753038984021,0.6756732,118620.0,118610.0,0.8606374]
[1753038984518,0.6756732,118620.0,118610.0,0.69209]
[1753038984917,0.6756732,118620.0,118610.0,0.8606374]
[1753038985120,0.6756732,118620.0,118610.0,0.03301]
[1753038985320,0.6756732,118620.0,118610.0,0.62389]
[1753038985720,0.6756732,118620.0,118610.0,0.7924374]
[1753038986020,0.6756732,118620.0,118610.0,0.68588]
[1753038987120,0.6756732,118620.0,118610.0,0.69812]
[1753038987719,1.0364732,118620.0,118610.0,0.69812]
[1753038987916,1.28720231,118620.0,118610.0,0.59088]
[1753038988221,0.1685616,118600.0,118590.0,0.46513]
[1753038988425,0.6821316,118600.0,118590.0,1.05581]
[1753038988625,0.6821316,118600.0,118590.0,0.69501]
[1753038989525,0.6821316,118600.0,118590.0,0.8635858]
[1753038989924,0.6821316,118600.0,118590.0,1.25307491]
[1753038990324,0.6821316,118600.0,118590.0,1.25407491]
[1753038990725,0.6821316,118600.0,118590.0,1.25607491]
[1753038991322,0.6821316,118600.0,118590.0,1.61687491]
[1753038992224,0.6821316,118600.0,118590.0,1.47811491]
[1753038992429,0.6821316,118600.0,118590.0,1.11731491]
[1753038992623,0.6821316,118600.0,118590.0,0.69801]
[1753038993428,1.29366071,118600.0,118590.0,0.59368]
[1753038993825,1.0429316,118600.0,118590.0,0.003]
[1753038994026,1.6334516,118600.0,118590.0,0.003]
[1753038994325,1.88418071,118600.0,118590.0,0.003]
[1753038994526,1.6334516,118600.0,118590.0,0.003]
[1753038994729,1.6334516,118600.0,118590.0,0.0331]
[1753038997631,1.6334516,118600.0,118590.0,0.003]
[1753038997832,1.88418071,118600.0,118590.0,0.003]
[1753038998234,1.6334516,118600.0,118590.0,0.003]
[1753038998432,1.88418071,118600.0,118590.0,0.003]
[1753039000228,1.6334516,118600.0,118590.0,0.003]
[1753039002132,1.2726516,118600.0,118590.0,0.003]
[1753039002335,1.6334516,118600.0,118590.0,0.003]
[1753039003325,1.69960096,118600.0,118590.0,0.003]
[1753039004326,1.95033007,118600.0,118590.0,0.003]
[1753039004726,0.1685899,118580.0,118570.0,0.3608]
[1753039004937,0.4321742,118570.0,118560.0,0.46513]
[1753039005137,0.6921742,118570.0,118560.0,1.05641]
[1753039005435,0.70072403,118570.0,118560.0,1.19517]
[1753039005637,0.70072403,118570.0,118560.0,1.05641]
[1753039005836,0.70072403,118570.0,118560.0,1.30709911]
[1753039006036,0.70072403,118570.0,118560.0,1.05637]
[1753039006539,0.2810784,118560.0,118550.0,0.04234]
[1753039006732,0.7221884,118560.0,118550.0,0.63366]
[1753039007541,0.7221884,118560.0,118550.0,0.69565]
[1753039007740,0.7221884,118560.0,118550.0,0.79256]
[1753039007934,0.7221884,118560.0,118550.0,0.86439]
[1753039008134,0.7221884,118560.0,118550.0,1.11511911]
[1753039008333,0.7221884,118560.0,118550.0,1.28375171]
[1753039008940,0.7221884,118560.0,118550.0,1.11511911]
[1753039009243,0.7221884,118560.0,118550.0,1.11911911]
[1753039009751,0.7221884,118560.0,118550.0,1.28775171]
[1753039010143,0.7221884,118560.0,118550.0,1.11911911]
[1753039010647,0.7221884,118560.0,118550.0,1.11935911]
[1753039011944,0.7221884,118560.0,118550.0,0.25309]
[1753039012148,0.7221884,118560.0,118550.0,0.70541]
[1753039012640,0.7221884,118560.0,118550.0,0.05234]
[1753039012840,0.7221884,118560.0,118550.0,0.64334]
[1753039013044,0.7221884,118560.0,118550.0,0.70533]
[1753039013950,1.0829884,118560.0,118550.0,0.70533]
[1753039015456,1.0829884,118560.0,118550.0,0.11433]
[1753039015654,1.0829884,118560.0,118550.0,0.70489]
[1753039016456,0.7221884,118560.0,118550.0,0.95561911]
[1753039017057,0.7221884,118560.0,118550.0,1.08584911]
[1753039017761,0.7221884,118560.0,118550.0,1.63800171]
[1753039020260,0.7221884,118560.0,118550.0,1.3872726]
[1753039020762,0.7221884,118560.0,118550.0,1.63800171]
[1753039021261,0.7221884,118560.0,118550.0,1.27720171]
[1753039021860,0.7221884,118560.0,118550.0,1.63800171]
[1753039022758,0.7221884,118560.0,118550.0,1.27720171]
[1753039023260,0.7221884,118560.0,118550.0,1.3872726]
[1753039023463,0.7221884,118560.0,118550.0,1.63800171]
[1753039023860,0.29,118560.0,118550.0,1.88873082]
[1753039024253,0.29,118560.0,118550.0,1.91129155]